[Event "Fagernes GM Swiss 2020"]
[Site "Fagernes"]
[Date "2020.10.07"]
[Round "5.9"]
[White "Ingebretsen, Jens E"]
[Black "Galinsky, Timofey"]
[Result "1-0"]
[ECO "C02"]
[WhiteElo "2220"]
[BlackElo "2370"]
[Annotator "ChessBase"]
[PlyCount "93"]
[EventDate "2020.10.04"]
[EventType "swiss"]
[EventCountry "NOR"]
[SourceTitle "playchess.com"]
[Source "ChessBase"]
[SourceQuality "1"]
[TimeControl "40/6000+30:2400+30"]

1. e4 {[%emt 0:00:40]} e6 {[%emt 0:00:00]} 2. d4 {[%emt 0:00:05]} d5 {[%emt 0:00:00]} 3. e5 {[%emt 0:00:11]} c5 {[%emt 0:00:15]} 4. c3 {[%emt 0:00:05]} Qb6 {[%emt 0:00:23]} 5. Nf3 {[%emt 0:00:08]} Bd7 {[%emt 0:00:37]} 6. Nbd2 {[%emt 0:02:25]} cxd4 {[%emt 0:02:12]} 7. Nxd4 {[%emt 0:01:53]} Nc6 {[%emt 0:03:03]} 8. N2f3 {[%emt 0:01:04]} f6 {[%emt 0:04:06]} 9. Bd3 {[%emt 0:05:41]} O-O-O {[%emt 0:05:41]} 10. Nxc6 {[%emt 0:04:43]} Bxc6 {[%emt 0:00:27]} 11. O-O {[%emt 0:00:38]} Nh6 {[%emt 0:05:44]} 12. Qe2 {[%emt 0:07:06]} f5 {[%emt 0:03:13]} 13. a4 {[%emt 0:02:56]} Kb8 {[%emt 0:00:14]} 14. b4 {[%emt 0:01:44]} Rc8 {[%emt 0:04:38]} 15. Be3 {[%emt 0:13:09]} Qd8 {[%emt 0:00:06]} 16. Bd4 {[%emt 0:24:31]} f4 {[%emt 0:00:08]} 17. Rfb1 {[%emt 0:02:33]} Bd7 {[%emt 0:01:09]} 18. h4 {[%emt 0:06:13]} Be7 {[%emt 0:00:10]} 19. a5 {[%emt 0:00:38]} Rf8 {[%emt 0:01:46]} 20. b5 {[%emt 0:02:48]} Nf5 {[%emt 0:03:11]} 21. Bxa7+ {[%emt 0:05:21]} Kxa7 {[%emt 0:00:04]} 22. b6+ {[%emt 0:00:07]} Kb8 {[%emt 0:00:05]} 23. a6 {[%emt 0:00:18]} Rc6 {[%emt 0:03:43]} 24. axb7 {[%emt 0:02:54]} Rxb6 {[%emt 0:00:05]} 25. Ra8+ {[%emt 0:05:40]} Kxb7 {[%emt 0:00:19]} 26. Rxd8 {[%emt 0:00:04]} Rxb1+ 27. Bxb1 {[%emt 0:00:02]} Bxd8 {[%emt 0:00:59]} 28. Qb2+ {[%emt 0:00:57]} Bb6 {[%emt 0:00:51]} 29. Qb4 {[%emt 0:01:11]} Re8 {[%emt 0:02:49]} 30. Qxf4 {[%emt 0:01:38]} Rc8 {[%emt 0:01:46]} 31. Qd2 {[%emt 0:01:55]} g6 {[%emt 0:00:15]} 32. Bd3 {[%emt 0:03:17]} Bc6 {[%emt 0:02:18]} 33. Bxf5 {[%emt 0:02:48]} exf5 {[%emt 0:01:02]} 34. Qh6 {[%emt 0:00:30]} Rc7 {[%emt 0:00:30]} 35. h5 {[%emt 0:00:30]} Be8 {[%emt 0:00:30]} 36. Qf8 {[%emt 0:00:30]} Ba4 {[%emt 0:00:30]} 37. Qg8 {[%emt 0:00:30]} gxh5 {[%emt 0:00:30]} 38. Qxd5+ {[%emt 0:00:30]} Bc6 {[%emt 0:00:30]} 39. Qe6 {[%emt 0:00:30]} Be4 {[%emt 0:00:30]} 40. Nd2 {[%emt 0:00:30]} Rxc3 {[%emt 0:00:30]} 41. Nxe4 {[%emt 0:40:30]} Rc1+ {[%emt 0:40:30]} 42. Kh2 {[%emt 0:00:30]} fxe4 {[%emt 0:00:30]} 43. Qd5+ {[%emt 0:00:30]} Kc7 {[%emt 0:00:30]} 44. Qxe4 {[%emt 0:00:30]} Bxf2 {[%emt 0:00:30]} 45. Qxh7+ {[%emt 0:00:30]} Kb8 {[%emt 0:13:33]} 46. Qg8+ {[%emt 0:08:47]} Rc8 {[%emt 0:00:07]} 47. Qb3+ {[%emt 0:00:12]} 1-0

[Event "Fagernes GM Swiss 2020"]
[Site "Fagernes"]
[Date "2020.10.07"]
[Round "5.11"]
[White "Dahl, Trygve"]
[Black "Lund, Gunnar"]
[Result "1-0"]
[ECO "B15"]
[WhiteElo "2211"]
[BlackElo "2302"]
[Annotator "ChessBase"]
[PlyCount "101"]
[EventDate "2020.10.04"]
[EventType "swiss"]
[EventCountry "NOR"]
[SourceTitle "playchess.com"]
[Source "ChessBase"]
[SourceQuality "1"]
[TimeControl "40/6000+30:2400+30"]

1. e4 {[%emt 0:00:00]} c6 {[%emt 0:00:10]} 2. d4 {[%emt 0:00:00]} d5 {[%emt 0:00:05]} 3. Nc3 {[%emt 0:00:00]} dxe4 {[%emt 0:00:08]} 4. Nxe4 {[%emt 0:00:00]} Nf6 {[%emt 0:00:08]} 5. Nxf6+ {[%emt 0:00:00]} exf6 {[%emt 0:00:05]} 6. c3 {[%emt 0:00:00]} Bd6 {[%emt 0:00:16]} 7. Bd3 {[%emt 0:00:00]} O-O {[%emt 0:00:11]} 8. Qc2 {[%emt 0:00:00]} Re8+ {[%emt 0:00:11]} 9. Ne2 {[%emt 0:00:01]} h5 {[%emt 0:00:10]} 10. O-O {[%emt 0:04:28]} h4 {[%emt 0:02:16]} 11. Re1 {[%emt 0:08:32]} Nd7 {[%emt 0:05:47]} 12. Bf4 {[%emt 0:02:03]} Nf8 {[%emt 0:05:22]} 13. Bxd6 {[%emt 0:04:03]} Qxd6 {[%emt 0:00:44]} 14. h3 {[%emt 0:03:40]} Be6 {[%emt 0:05:59]} 15. Rad1 {[%emt 0:00:42]} g6 {[%emt 0:07:54]} 16. c4 {[%emt 0:03:51]} f5 {[%emt 0:02:16]} 17. Qd2 {[%emt 0:12:19]} Bd7 {[%emt 0:05:36]} 18. Qg5 {[%emt 0:08:34]} Qe7 {[%emt 0:03:36]} 19. Qxe7 {[%emt 0:02:53]} Rxe7 {[%emt 0:00:10]} 20. Kf1 {[%emt 0:12:08]} Rae8 {[%emt 0:03:41]} 21. Ng1 {[%emt 0:01:42]} f6 {[%emt 0:07:11]} 22. Rxe7 {[%emt 0:06:21]} Rxe7 {[%emt 0:00:15]} 23. Nf3 {[%emt 0:00:08]} g5 {[%emt 0:00:05]} 24. d5 {[%emt 0:00:05]} Ng6 {[%emt 0:14:37]} 25. d6 {[%emt 0:05:55]} Re8 {[%emt 0:01:30]} 26. Nd4 {[%emt 0:09:24]} Ne5 {[%emt 0:12:51]} 27. Nxf5 {[%emt 0:01:23]} Bxf5 {[%emt 0:00:28]} 28. Bxf5 {[%emt 0:00:36]} c5 {[%emt 0:00:10]} 29. g3 {[%emt 0:11:35]} Kf8 {[%emt 0:00:01]} 30. b3 {[%emt 0:01:08]} Rd8 {[%emt 0:00:02]} 31. Rd5 {[%emt 0:07:31]} b6 {[%emt 0:04:20]} 32. f4 {[%emt 0:06:58]} Nf7 {[%emt 0:03:09]} 33. d7 {[%emt 0:00:00]} hxg3 {[%emt 0:01:56]} 34. fxg5 {[%emt 0:00:00]} fxg5 {[%emt 0:00:07]} 35. Kg2 {[%emt 0:00:00]} Ke7 {[%emt 0:04:53]} 36. Kxg3 {[%emt 0:00:00]} Kf6 {[%emt 0:01:48]} 37. Bg4 {[%emt 0:00:00]} Rh8 {[%emt 0:01:44]} 38. Rf5+ {[%emt 0:00:00]} Kg6 {[%emt 0:00:02]} 39. Rd5 {[%emt 0:00:00]} Kf6 {[%emt 0:00:02]} 40. a3 {[%emt 0:00:00]} a5 {[%emt 0:00:23]} 41. b4 {[%emt 0:40:26]} axb4 {[%emt 0:41:10]} 42. axb4 {[%emt 0:00:05]} cxb4 {[%emt 0:00:16]} 43. Rb5 {[%emt 0:00:22]} Ne5 {[%emt 0:00:55]} 44. Rxb6+ {[%emt 0:00:08]} Kf7 {[%emt 0:00:06]} 45. c5 {[%emt 0:01:48]} Nxg4 {[%emt 0:00:33]} 46. Kxg4 {[%emt 0:00:22]} Ke7 {[%emt 0:00:19]} 47. c6 {[%emt 0:01:03]} Kd6 {[%emt 0:02:10]} 48. Kxg5 {[%emt 0:01:17]} Kc7 {[%emt 0:02:09]} 49. Rxb4 {[%emt 0:00:21]} Kxc6 {[%emt 0:03:17]} 50. Rd4 {[%emt 0:00:18]} Rd8 {[%emt 0:00:09]} 51. Kf6 {[%emt 0:00:12]} 1-0

[Event "Fagernes GM Swiss 2020"]
[Site "Fagernes"]
[Date "2020.10.07"]
[Round "5.12"]
[White "Vestby-Ellingsen, Mads"]
[Black "Eliseev, Sergey"]
[Result "1-0"]
[ECO "D00"]
[WhiteElo "2362"]
[BlackElo "2025"]
[Annotator "ChessBase"]
[PlyCount "77"]
[EventDate "2020.10.04"]
[EventType "swiss"]
[EventCountry "NOR"]
[SourceTitle "playchess.com"]
[Source "ChessBase"]
[SourceQuality "1"]
[TimeControl "40/6000+30:2400+30"]

1. d4 {[%emt 0:00:00]} Nf6 {[%emt 0:00:00]} 2. Bg5 {[%emt 0:00:14]} d5 {[%emt 0:01:00]} 3. e3 {[%emt 0:00:16]} c6 {[%emt 0:01:01]} 4. Nd2 {[%emt 0:02:50]} e6 {[%emt 0:03:35]} 5. Bd3 {[%emt 0:01:28]} Nbd7 {[%emt 0:00:59]} 6. f4 {[%emt 0:01:31]} Be7 {[%emt 0:05:58]} 7. Ngf3 {[%emt 0:08:42]} c5 {[%emt 0:04:09]} 8. c3 {[%emt 0:03:07]} b6 {[%emt 0:03:53]} 9. Ne5 {[%emt 0:06:20]} Nxe5 {[%emt 0:08:28]} 10. dxe5 {[%emt 0:00:20]} Nd7 {[%emt 0:19:03]} 11. Bxe7 {[%emt 0:05:43]} Qxe7 {[%emt 0:00:10]} 12. Nf3 {[%emt 0:02:18]} a6 {[%emt 0:07:33]} 13. O-O {[%emt 0:02:38]} Bb7 {[%emt 0:01:07]} 14. Qe2 {[%emt 0:03:36]} Kd8 {[%emt 0:26:01]} 15. b4 {[%emt 0:06:39]} Kc7 {[%emt 0:00:39]} 16. Rab1 {[%emt 0:03:09]} f5 {[%emt 0:13:12]} 17. exf6 {[%emt 0:08:30]} Qxf6 {[%emt 0:00:21]} 18. bxc5 {[%emt 0:00:53]} Nxc5 {[%emt 0:00:36]} 19. Nd4 {[%emt 0:10:19]} b5 {[%emt 0:04:49]} 20. Bxb5 {[%emt 0:15:11]} axb5 {[%emt 0:00:07]} 21. Qxb5 {[%emt 0:04:58]} Qe7 {[%emt 0:00:06]} 22. Qxc5+ {[%emt 0:02:18]} Qxc5 {[%emt 0:00:02]} 23. Nxe6+ {[%emt 0:00:09]} Kd6 {[%emt 0:00:12]} 24. Nxc5 {[%emt 0:00:09]} Bc8 {[%emt 0:03:15]} 25. Nd3 {[%emt 0:01:55]} Bf5 {[%emt 0:01:02]} 26. Rbd1 {[%emt 0:00:18]} Rhc8 {[%emt 0:04:46]} 27. Nb4 {[%emt 0:00:31]} Be4 {[%emt 0:00:04]} 28. Nxd5 {[%emt 0:04:00]} Ke6 {[%emt 0:00:52]} 29. f5+ {[%emt 0:04:05]} Kf7 {[%emt 0:00:01]} 30. Rf4 {[%emt 0:05:00]} Bxd5 {[%emt 0:00:09]} 31. Rxd5 {[%emt 0:00:05]} Rxc3 {[%emt 0:00:11]} 32. Rg4 {[%emt 0:03:01]} Rxa2 {[%emt 0:00:29]} 33. h3 {[%emt 0:00:25]} Rxe3 {[%emt 0:02:01]} 34. Rd7+ {[%emt 0:00:09]} Kf6 {[%emt 0:00:02]} 35. Rgxg7 {[%emt 0:00:34]} Kxf5 {[%emt 0:00:56]} 36. Rxh7 {[%emt 0:00:27]} Rg3 {[%emt 0:00:29]} 37. Rdf7+ {[%emt 0:00:50]} Kg5 {[%emt 0:00:32]} 38. Rfg7+ {[%emt 0:00:26]} Kf4 {[%emt 0:00:07]} 39. Rh4+ {[%emt 0:00:08]} 1-0

[Event "Fagernes GM Swiss 2020"]
[Site "Fagernes"]
[Date "2020.10.07"]
[Round "5.13"]
[White "Shehzad, Shazil"]
[Black "Tenold, Andreas"]
[Result "1-0"]
[ECO "B82"]
[WhiteElo "2188"]
[BlackElo "1935"]
[Annotator "ChessBase"]
[PlyCount "55"]
[EventDate "2020.10.04"]
[EventType "swiss"]
[EventCountry "NOR"]
[SourceTitle "playchess.com"]
[Source "ChessBase"]
[SourceQuality "1"]
[TimeControl "40/6000+30:2400+30"]

1. e4 {[%emt 0:00:00]} c5 {[%emt 0:00:00]} 2. Nf3 {[%emt 0:00:08]} e6 {[%emt 0:00:03]} 3. d4 {[%emt 0:00:15]} cxd4 {[%emt 0:00:04]} 4. Nxd4 {[%emt 0:00:06]} Nc6 {[%emt 0:00:06]} 5. Nc3 {[%emt 0:00:11]} Qc7 {[%emt 0:00:49]} 6. Be3 {[%emt 0:00:08]} a6 {[%emt 0:00:09]} 7. a3 {[%emt 0:00:05]} Nf6 {[%emt 0:00:26]} 8. f4 {[%emt 0:00:06]} d6 {[%emt 0:00:08]} 9. Qf3 {[%emt 0:00:18]} b5 {[%emt 0:00:27]} 10. Nxc6 {[%emt 0:03:09]} Qxc6 {[%emt 0:00:10]} 11. g4 {[%emt 0:01:46]} Bb7 {[%emt 0:00:22]} 12. Bd3 {[%emt 0:02:52]} Be7 {[%emt 0:11:34]} 13. g5 {[%emt 0:00:18]} Nd7 {[%emt 0:00:17]} 14. O-O-O {[%emt 0:02:42]} Nc5 {[%emt 0:33:07]} 15. Kb1 {[%emt 0:02:19]} Nxd3 {[%emt 0:05:39]} 16. cxd3 {[%emt 0:00:19]} a5 {[%emt 0:00:57]} 17. Rc1 {[%emt 0:10:32]} Qa6 {[%emt 0:04:35]} 18. a4 {[%emt 0:02:12]} bxa4 {[%emt 0:03:54]} 19. Bd4 {[%emt 0:01:28]} O-O {[%emt 0:05:37]} 20. h4 {[%emt 1:21:06]} a3 {[%emt 0:10:16]} 21. Rc2 {[%emt 0:00:00]} Rfd8 {[%emt 0:01:54]} 22. g6 {[%emt 0:00:00]} fxg6 {[%emt 0:05:37]} 23. h5 {[%emt 0:00:00]} e5 {[%emt 0:04:44]} 24. hxg6 {[%emt 0:00:00]} hxg6 {[%emt 0:00:06]} 25. Qg4 {[%emt 0:00:00]} Bc8 {[%emt 0:04:03]} 26. Qxg6 {[%emt 0:00:00]} a2+ {[%emt 0:05:47]} 27. Ka1 {[%emt 0:00:00]} exd4 {[%emt 0:03:39]} 28. Rch2 {[%emt 0:00:00]} 1-0

[Event "Fagernes GM Swiss 2020"]
[Site "Fagernes"]
[Date "2020.10.07"]
[Round "5.14"]
[White "Skotheim, Andreas"]
[Black "Fossan, Aleksander"]
[Result "1/2-1/2"]
[ECO "B27"]
[WhiteElo "2120"]
[BlackElo "2171"]
[Annotator "ChessBase"]
[PlyCount "32"]
[EventDate "2020.10.04"]
[EventType "swiss"]
[EventCountry "NOR"]
[SourceTitle "playchess.com"]
[Source "ChessBase"]
[SourceQuality "1"]
[TimeControl "40/6000+30:2400+30"]

1. e4 {[%emt 0:00:00]} c5 {[%emt 0:00:28]} 2. Nf3 {[%emt 0:00:00]} g6 {[%emt 0:00:14]} 3. d4 {[%emt 0:00:38]} cxd4 {[%emt 0:00:28]} 4. Qxd4 {[%emt 0:00:12]} Nf6 {[%emt 0:00:07]} 5. Nc3 {[%emt 0:00:13]} Nc6 {[%emt 0:00:23]} 6. Qa4 {[%emt 0:00:10]} d6 {[%emt 0:00:30]} 7. e5 {[%emt 0:00:26]} Ng4 {[%emt 0:00:26]} 8. exd6 {[%emt 0:22:00]} Qb6 {[%emt 0:00:11]} 9. Nd1 {[%emt 0:03:51]} exd6 {[%emt 0:00:58]} 10. c3 {[%emt 0:23:55]} Bg7 {[%emt 0:28:41]} 11. Bc4 {[%emt 0:06:16]} O-O {[%emt 0:02:14]} 12. O-O {[%emt 0:01:12]} Bd7 {[%emt 0:04:51]} 13. Qa3 {[%emt 0:06:30]} Nce5 {[%emt 0:07:58]} 14. Nxe5 {[%emt 0:01:40]} dxe5 {[%emt 0:01:35]} 15. Ne3 {[%emt 0:01:04]} Qc7 {[%emt 0:04:15]} 16. Qb3 {[%emt 0:08:57]} Nf6 {[%emt 0:07:45]} 1/2-1/2

[Event "Fagernes GM Swiss 2020"]
[Site "Fagernes"]
[Date "2020.10.07"]
[Round "5.15"]
[White "Holleland, Sigve"]
[Black "Abdrlauf, Elham"]
[Result "0-1"]
[ECO "E11"]
[WhiteElo "2133"]
[BlackElo "2362"]
[Annotator "ChessBase"]
[PlyCount "110"]
[EventDate "2020.10.04"]
[EventType "swiss"]
[EventCountry "NOR"]
[SourceTitle "playchess.com"]
[Source "ChessBase"]
[SourceQuality "1"]
[TimeControl "40/6000+30:2400+30"]

1. d4 {[%emt 0:02:29]} Nf6 {[%emt 0:00:00]} 2. c4 {[%emt 0:00:08]} e6 {[%emt 0:00:00]} 3. Nf3 {[%emt 0:00:06]} d5 {[%emt 0:00:00]} 4. g3 {[%emt 0:00:07]} Bb4+ {[%emt 0:00:00]} 5. Bd2 {[%emt 0:00:18]} Be7 {[%emt 0:00:00]} 6. Bg2 {[%emt 0:01:06]} Nbd7 {[%emt 0:00:10]} 7. O-O {[%emt 0:03:57]} c6 {[%emt 0:00:06]} 8. a4 {[%emt 0:03:42]} Ne4 {[%emt 0:00:41]} 9. Nc3 {[%emt 0:03:14]} Nxd2 {[%emt 0:00:27]} 10. Nxd2 {[%emt 0:00:47]} f5 {[%emt 0:08:53]} 11. f4 {[%emt 0:01:57]} Qb6 {[%emt 0:06:09]} 12. c5 {[%emt 0:04:51]} Qxb2 {[%emt 0:02:29]} 13. Rf3 {[%emt 0:08:47]} Qb4 {[%emt 0:04:02]} 14. Nb3 {[%emt 0:00:28]} b6 {[%emt 0:07:32]} 15. Na2 {[%emt 0:21:05]} Qc4 {[%emt 0:00:05]} 16. Rc3 {[%emt 0:00:20]} Qa6 {[%emt 0:00:05]} 17. cxb6 {[%emt 0:00:55]} Qxb6 {[%emt 0:00:06]} 18. a5 {[%emt 0:04:29]} Qc7 {[%emt 0:00:13]} 19. Rac1 {[%emt 0:04:22]} Nb8 {[%emt 0:00:07]} 20. g4 {[%emt 0:01:09]} fxg4 {[%emt 0:06:03]} 21. e3 {[%emt 0:02:50]} O-O {[%emt 0:03:05]} 22. Qxg4 {[%emt 0:02:32]} Ba3 {[%emt 0:00:33]} 23. R1c2 {[%emt 0:00:33]} Qf7 {[%emt 0:02:48]} 24. Qg3 {[%emt 0:01:49]} Bd7 {[%emt 0:03:54]} 25. Bf1 {[%emt 0:00:54]} Bd6 {[%emt 0:04:26]} 26. Bd3 {[%emt 0:02:09]} Kh8 {[%emt 0:05:46]} 27. Rg2 {[%emt 0:03:20]} g6 {[%emt 0:01:11]} 28. Nd2 {[%emt 0:02:12]} c5 {[%emt 0:03:13]} 29. dxc5 {[%emt 0:05:39]} d4 {[%emt 0:02:57]} 30. exd4 {[%emt 0:06:05]} Bxf4 {[%emt 0:00:03]} 31. Qe1 {[%emt 0:00:39]} Nc6 {[%emt 0:06:25]} 32. Nf3 {[%emt 0:03:03]} Rae8 {[%emt 0:01:48]} 33. Be4 {[%emt 0:03:23]} Qf6 {[%emt 0:07:16]} 34. Rd3 {[%emt 0:04:37]} Re7 {[%emt 0:08:52]} 35. Nc1 {[%emt 0:01:30]} Ref7 {[%emt 0:01:47]} 36. Ne2 {[%emt 0:00:29]} Bc7 {[%emt 0:00:06]} 37. Kh1 {[%emt 0:01:48]} Nxa5 {[%emt 0:01:53]} 38. Qg1 {[%emt 0:03:14]} Qg7 {[%emt 0:04:13]} 39. Rd1 {[%emt 0:06:20]} Rxf3 {[%emt 0:00:44]} 40. Bxg6 {[%emt 0:01:55]} hxg6 {[%emt 0:00:39]} 41. Rxg6 {[%emt 0:40:04]} Qh7 {[%emt 0:41:04]} 42. d5 {[%emt 0:00:38]} Bxh2 {[%emt 0:01:05]} 43. Qxh2 {[%emt 0:00:00]} Rh3 {[%emt 0:00:00]} 44. Rg2 {[%emt 0:00:00]} exd5 {[%emt 0:00:00]} 45. Ng1 {[%emt 0:00:00]} Rxh2+ {[%emt 0:00:00]} 46. Rxh2 {[%emt 0:00:00]} Rf2 {[%emt 0:00:00]} 47. Rxh7+ {[%emt 0:00:00]} Kxh7 {[%emt 0:22:34]} 48. Ra1 {[%emt 0:00:00]} Nc6 {[%emt 0:00:00]} 49. Ra6 {[%emt 0:00:00]} d4 {[%emt 0:00:00]} 50. Nh3 {[%emt 0:00:00]} Bxh3 {[%emt 0:00:00]} 51. Rxc6 {[%emt 0:05:30]} Bg2+ {[%emt 0:00:00]} 52. Kg1 {[%emt 0:00:00]} Bxc6 {[%emt 0:00:00]} 53. Kxf2 {[%emt 0:00:00]} Kg6 {[%emt 0:00:00]} 54. Ke2 {[%emt 0:00:00]} Kf5 {[%emt 0:00:00]} 55. Kd3 {[%emt 0:00:00]} Ke5 {[%emt 0:00:00]} 0-1

[Event "Fagernes GM Swiss 2020"]
[Site "Fagernes"]
[Date "2020.10.07"]
[Round "5.16"]
[White "Sorensen, Simen"]
[Black "Nielsen, Andre"]
[Result "1/2-1/2"]
[ECO "E80"]
[WhiteElo "2047"]
[BlackElo "2218"]
[Annotator "ChessBase"]
[PlyCount "63"]
[EventDate "2020.10.04"]
[EventType "swiss"]
[EventCountry "NOR"]
[SourceTitle "playchess.com"]
[Source "ChessBase"]
[SourceQuality "1"]
[TimeControl "40/6000+30:2400+30"]

1. d4 {[%emt 0:00:36]} Nf6 {[%emt 0:00:02]} 2. c4 {[%emt 0:00:12]} g6 {[%emt 0:00:41]} 3. Nc3 {[%emt 0:00:34]} Bg7 {[%emt 0:00:19]} 4. e4 {[%emt 0:00:22]} d6 {[%emt 0:00:13]} 5. f3 {[%emt 0:04:03]} c5 {[%emt 0:05:13]} 6. dxc5 {[%emt 0:09:37]} dxc5 {[%emt 0:02:40]} 7. Qxd8+ {[%emt 0:01:33]} Kxd8 {[%emt 0:00:15]} 8. Be3 {[%emt 0:01:16]} Nfd7 {[%emt 0:07:30]} 9. Nge2 {[%emt 0:03:54]} Nc6 {[%emt 0:01:34]} 10. O-O-O {[%emt 0:04:12]} b6 {[%emt 0:01:39]} 11. f4 {[%emt 0:13:35]} Kc7 {[%emt 0:06:59]} 12. g4 {[%emt 0:07:01]} g5 {[%emt 0:22:50]} 13. h3 {[%emt 0:21:39]} gxf4 {[%emt 0:03:48]} 14. Bxf4+ {[%emt 0:01:15]} Kb7 {[%emt 0:01:40]} 15. b3 {[%emt 0:16:28]} Nde5 {[%emt 0:02:19]} 16. a3 {[%emt 0:01:10]} a6 {[%emt 0:09:01]} 17. Bg2 {[%emt 0:01:10]} Be6 {[%emt 0:01:02]} 18. Nd5 {[%emt 0:06:25]} b5 {[%emt 0:04:10]} 19. Bxe5 {[%emt 0:03:48]} Bxe5 {[%emt 0:01:25]} 20. Kc2 {[%emt 0:00:37]} Rhe8 {[%emt 0:12:46]} 21. Rb1 {[%emt 0:00:38]} Na5 {[%emt 0:01:34]} 22. Nef4 {[%emt 0:01:40]} bxc4 {[%emt 0:12:33]} 23. bxc4+ {[%emt 0:00:37]} Ka7 {[%emt 0:00:30]} 24. Nd3 {[%emt 0:06:05]} Nxc4 {[%emt 0:06:45]} 25. Nxe5 {[%emt 0:01:17]} Bxd5 {[%emt 0:00:56]} 26. exd5 {[%emt 0:01:49]} Nxe5 {[%emt 0:00:47]} 27. d6 {[%emt 0:01:18]} Rab8 {[%emt 0:00:42]} 28. dxe7 {[%emt 0:00:36]} Rxb1 {[%emt 0:01:12]} 29. Rxb1 {[%emt 0:00:09]} Rxe7 {[%emt 0:00:08]} 30. Kc3 {[%emt 0:00:29]} Rd7 {[%emt 0:02:14]} 31. Be4 {[%emt 0:00:24]} h6 {[%emt 0:02:03]} 32. Rf1 {[%emt 0:01:31]} 1/2-1/2

[Event "Fagernes GM Swiss 2020"]
[Site "Fagernes"]
[Date "2020.10.07"]
[Round "5.18"]
[White "Oye-Stromberg, Alexander"]
[Black "Royset, Pal"]
[Result "1-0"]
[ECO "B20"]
[WhiteElo "2048"]
[BlackElo "2150"]
[Annotator "ChessBase"]
[PlyCount "79"]
[EventDate "2020.10.04"]
[EventType "swiss"]
[EventCountry "NOR"]
[SourceTitle "playchess.com"]
[Source "ChessBase"]
[SourceQuality "1"]
[TimeControl "40/6000+30:2400+30"]

1. e4 {[%emt 0:00:00]} c5 {[%emt 0:00:00]} 2. a3 {[%emt 0:00:12]} Nf6 {[%emt 0:02:35]} 3. e5 {[%emt 0:01:13]} Nd5 {[%emt 0:00:20]} 4. Nf3 {[%emt 0:02:03]} Nc6 {[%emt 0:01:31]} 5. c4 {[%emt 0:12:32]} Nf4 {[%emt 0:05:18]} 6. b4 {[%emt 0:11:29]} Ng6 {[%emt 0:01:06]} 7. bxc5 {[%emt 0:13:40]} Ngxe5 {[%emt 0:00:50]} 8. Nxe5 {[%emt 0:00:11]} Nxe5 {[%emt 0:00:04]} 9. d4 {[%emt 0:00:15]} Ng6 {[%emt 0:05:06]} 10. Be3 {[%emt 0:00:46]} e6 {[%emt 0:02:59]} 11. Be2 {[%emt 0:06:58]} d6 {[%emt 0:01:21]} 12. cxd6 {[%emt 0:00:42]} Bxd6 {[%emt 0:00:16]} 13. O-O {[%emt 0:03:21]} O-O {[%emt 0:01:05]} 14. Nc3 {[%emt 0:01:19]} b6 {[%emt 0:08:28]} 15. Bf3 {[%emt 0:06:11]} Rb8 {[%emt 0:00:45]} 16. Nb5 {[%emt 0:07:44]} a6 {[%emt 0:05:13]} 17. Nxd6 {[%emt 0:00:50]} Qxd6 {[%emt 0:00:05]} 18. c5 {[%emt 0:08:12]} bxc5 {[%emt 0:02:50]} 19. dxc5 {[%emt 0:00:06]} Qc7 {[%emt 0:00:25]} 20. Rb1 {[%emt 0:04:24]} Rxb1 {[%emt 0:03:31]} 21. Qxb1 {[%emt 0:00:02]} Ne5 {[%emt 0:00:38]} 22. Qb6 {[%emt 0:01:24]} Nxf3+ {[%emt 0:05:50]} 23. gxf3 {[%emt 0:00:01]} Qe5 {[%emt 0:02:00]} 24. Rd1 {[%emt 0:00:33]} Qf6 {[%emt 0:00:31]} 25. c6 {[%emt 0:04:23]} e5 {[%emt 0:10:23]} 26. c7 {[%emt 0:03:12]} Qxb6 {[%emt 0:04:04]} 27. Bxb6 {[%emt 0:00:13]} f6 {[%emt 0:00:30]} 28. Rd8 {[%emt 0:02:55]} Kf7 {[%emt 0:00:05]} 29. Kf1 {[%emt 0:00:41]} Re8 {[%emt 0:01:04]} 30. Ke2 {[%emt 0:00:53]} g5 {[%emt 0:07:45]} 31. Kd3 {[%emt 0:02:11]} h5 {[%emt 0:03:40]} 32. Kc4 {[%emt 0:00:25]} g4 {[%emt 0:01:40]} 33. fxg4 {[%emt 0:00:09]} hxg4 {[%emt 0:00:06]} 34. Ba5 {[%emt 0:03:57]} f5 {[%emt 0:01:23]} 35. Bc3 {[%emt 0:03:20]} e4 {[%emt 0:01:03]} 36. Bd2 {[%emt 0:00:18]} Bb7 {[%emt 0:13:10]} 37. Bf4 {[%emt 0:01:10]} Rg8 {[%emt 0:02:18]} 38. Kc5 {[%emt 0:00:32]} Re8 {[%emt 0:00:43]} 39. Kb6 {[%emt 0:00:33]} Bc8 {[%emt 0:00:10]} 40. Ka7 {[%emt 0:01:16]} 1-0

[Event "Fagernes GM Swiss 2020"]
[Site "Fagernes"]
[Date "2020.10.07"]
[Round "5.19"]
[White "Skaslien, Ingrid"]
[Black "Nilsen, Tobias Lang"]
[Result "0-1"]
[ECO "E20"]
[WhiteElo "1976"]
[BlackElo "2146"]
[Annotator "ChessBase"]
[PlyCount "54"]
[EventDate "2020.10.04"]
[EventType "swiss"]
[EventCountry "NOR"]
[SourceTitle "playchess.com"]
[Source "ChessBase"]
[SourceQuality "1"]
[TimeControl "40/6000+30:2400+30"]

1. d4 {[%emt 0:00:00]} e6 {[%emt 0:00:00]} 2. c4 {[%emt 0:00:00]} Nf6 {[%emt 0:00:15]} 3. Nc3 {[%emt 0:00:09]} Bb4 {[%emt 0:00:52]} 4. f3 {[%emt 0:01:00]} c5 {[%emt 0:01:33]} 5. d5 {[%emt 0:00:25]} b5 {[%emt 0:01:31]} 6. e4 {[%emt 0:05:01]} bxc4 {[%emt 0:04:05]} 7. Bxc4 {[%emt 0:00:24]} exd5 {[%emt 0:00:12]} 8. exd5 {[%emt 0:13:50]} O-O {[%emt 0:01:07]} 9. Nge2 {[%emt 0:00:25]} d6 {[%emt 0:02:26]} 10. O-O {[%emt 0:02:38]} Nbd7 {[%emt 0:02:24]} 11. a3 {[%emt 0:10:01]} Ba5 {[%emt 0:01:25]} 12. Bg5 {[%emt 0:05:10]} Ne5 {[%emt 0:08:24]} 13. b3 {[%emt 0:01:59]} h6 {[%emt 0:06:05]} 14. Bh4 {[%emt 0:02:51]} Ng6 {[%emt 0:01:11]} 15. Bg3 {[%emt 0:03:37]} Nh5 {[%emt 0:04:40]} 16. Bf2 {[%emt 0:02:57]} Nhf4 {[%emt 0:22:33]} 17. Ne4 {[%emt 0:10:55]} Nxe2+ {[%emt 0:03:55]} 18. Qxe2 {[%emt 0:01:59]} Re8 {[%emt 0:00:30]} 19. Qb2 {[%emt 0:01:37]} Rb8 {[%emt 0:02:03]} 20. Rac1 {[%emt 0:08:20]} Ne5 {[%emt 0:01:12]} 21. Qa1 {[%emt 0:00:24]} Bf5 {[%emt 0:04:15]} 22. Qa2 {[%emt 0:10:36]} Bxe4 {[%emt 0:03:16]} 23. fxe4 {[%emt 0:00:06]} Qg5 {[%emt 0:00:38]} 24. b4 {[%emt 0:06:48]} cxb4 {[%emt 0:03:33]} 25. axb4 {[%emt 0:00:36]} Bxb4 {[%emt 0:00:09]} 26. Bxa7 {[%emt 0:03:31]} Ra8 {[%emt 0:02:38]} 27. Qf2 {[%emt 0:01:34]} Rxa7 {[%emt 0:00:54]} 0-1